[Event "Late-Titled-Tuesday-Blitz-July-09-2024"]
[Site "Chess.com"]
[Date "2024.07.09"]
[Round "11"]
[White "Boorchess"]
[Black "Millerkallpa"]
[Result "1/2-1/2"]
[WhiteElo "2484"]
[BlackElo "2258"]
[TimeControl "180+1"]
[EndTime "16:05:17 PDT"]
[Termination "Game drawn - insufficient material"]

1. d4 {[%clk 0:03:00.9]} 1... d5 {[%clk 0:02:54.7]} 2. c4 {[%clk 0:03:01]} 2...
c6 {[%clk 0:02:54.1]} 3. cxd5 {[%clk 0:03:01.3]} 3... cxd5 {[%clk 0:02:54.7]} 4.
Nc3 {[%clk 0:03:01.7]} 4... e5 {[%clk 0:02:51.2]} 5. dxe5 {[%clk 0:02:57.9]}
5... d4 {[%clk 0:02:50.5]} 6. Nb1 {[%clk 0:02:57.5]} 6... Nc6 {[%clk 0:02:48]}
7. Nf3 {[%clk 0:02:56.9]} 7... Bg4 {[%clk 0:02:48]} 8. Nbd2 {[%clk 0:02:55.9]}
8... Bb4 {[%clk 0:02:45.4]} 9. a3 {[%clk 0:02:51]} 9... Bxd2+ {[%clk 0:02:45.1]}
10. Bxd2 {[%clk 0:02:50]} 10... Bxf3 {[%clk 0:02:44.6]} 11. exf3 {[%clk
0:02:48.9]} 11... Nxe5 {[%clk 0:02:44.9]} 12. Bb5+ {[%clk 0:02:48]} 12... Nc6
{[%clk 0:02:44.4]} 13. O-O {[%clk 0:02:47.4]} 13... Ne7 {[%clk 0:02:44.2]} 14.
Bxc6+ {[%clk 0:02:39.3]} 14... bxc6 {[%clk 0:02:42.8]} 15. Bb4 {[%clk
0:02:37.5]} 15... O-O {[%clk 0:02:31.2]} 16. Bxe7 {[%clk 0:02:35.5]} 16... Qxe7
{[%clk 0:02:32.1]} 17. Qxd4 {[%clk 0:02:35.4]} 17... Qb7 {[%clk 0:02:32.4]} 18.
Rfc1 {[%clk 0:02:27.8]} 18... Rad8 {[%clk 0:02:29.3]} 19. Qc3 {[%clk 0:02:24.4]}
19... Qb6 {[%clk 0:02:20.3]} 20. b4 {[%clk 0:02:22.4]} 20... a5 {[%clk
0:02:18.9]} 21. Qxc6 {[%clk 0:02:17]} 21... Rd1+ {[%clk 0:02:15.9]} 22. Rxd1
{[%clk 0:02:16.4]} 22... Qxc6 {[%clk 0:02:14.9]} 23. bxa5 {[%clk 0:02:16.2]}
23... Qb5 {[%clk 0:02:14.3]} 24. a4 {[%clk 0:02:13]} 24... Qxa5 {[%clk
0:02:14.2]} 25. g3 {[%clk 0:02:13.2]} 25... h6 {[%clk 0:02:13.4]} 26. Kg2 {[%clk
0:02:12.9]} 26... Rb8 {[%clk 0:02:13.9]} 27. Rd4 {[%clk 0:02:11.3]} 27... Rb2
{[%clk 0:02:12.4]} 28. Rf1 {[%clk 0:02:09.2]} 28... Ra2 {[%clk 0:02:11.2]} 29.
h4 {[%clk 0:02:08.6]} 29... Qc3 {[%clk 0:02:09.5]} 30. Rf4 {[%clk 0:02:06.5]}
30... g5 {[%clk 0:02:09.3]} 31. hxg5 {[%clk 0:02:06.7]} 31... hxg5 {[%clk
0:02:10.2]} 32. Rf5 {[%clk 0:02:04]} 32... f6 {[%clk 0:02:09.5]} 33. a5 {[%clk
0:01:57.7]} 33... Kg7 {[%clk 0:02:06.8]} 34. g4 {[%clk 0:01:56.4]} 34... Ra4
{[%clk 0:01:49]} 35. Rd1 {[%clk 0:01:53.6]} 35... Qc2 {[%clk 0:01:47.1]} 36. Rf1
{[%clk 0:01:49.2]} 36... Kg6 {[%clk 0:01:45.1]} 37. Kg3 {[%clk 0:01:44.6]} 37...
Qc7+ {[%clk 0:01:43.3]} 38. Kg2 {[%clk 0:01:44.5]} 38... Ra2 {[%clk 0:01:40.9]}
39. Re1 {[%clk 0:01:38.3]} 39... Qa7 {[%clk 0:01:38.5]} 40. Rf1 {[%clk
0:01:37.7]} 40... Qh7 {[%clk 0:01:33.6]} 41. Re1 {[%clk 0:01:28.2]} 41... Qh4
{[%clk 0:01:28.2]} 42. Rf1 {[%clk 0:01:27.9]} 42... Rb2 {[%clk 0:01:27.3]} 43.
Rd5 {[%clk 0:01:24.4]} 43... Qh7 {[%clk 0:01:20.9]} 44. Rf5 {[%clk 0:01:22.8]}
44... Rb8 {[%clk 0:01:18.4]} 45. Rh1 {[%clk 0:01:19]} 45... Qc7 {[%clk
0:01:11.5]} 46. Re1 {[%clk 0:01:14.6]} 46... Rh8 {[%clk 0:00:56.1]} 47. Rh1
{[%clk 0:01:12.3]} 47... Re8 {[%clk 0:00:54.1]} 48. Rf1 {[%clk 0:01:08.8]} 48...
Re2 {[%clk 0:00:54.1]} 49. Kg1 {[%clk 0:01:07.5]} 49... Qh7 {[%clk 0:00:49.5]}
50. Kg2 {[%clk 0:01:07.2]} 50... Ra2 {[%clk 0:00:48.4]} 51. Rd5 {[%clk
0:01:03.3]} 51... Qa7 {[%clk 0:00:45.7]} 52. Rf5 {[%clk 0:01:02.2]} 52... Rxa5
{[%clk 0:00:45.5]} 53. Rxa5 {[%clk 0:01:01.8]} 53... Qxa5 {[%clk 0:00:46.4]} 54.
Rd1 {[%clk 0:00:58.2]} 54... Qe5 {[%clk 0:00:42.2]} 55. Rc1 {[%clk 0:00:54.4]}
55... Qf4 {[%clk 0:00:39.2]} 56. Re1 {[%clk 0:00:49.9]} 56... f5 {[%clk
0:00:38.8]} 57. gxf5+ {[%clk 0:00:48.2]} 57... Kxf5 {[%clk 0:00:37.5]} 58. Re4
{[%clk 0:00:47.9]} 58... Qd6 {[%clk 0:00:32.9]} 59. Rg4 {[%clk 0:00:47.9]} 59...
Qd2 {[%clk 0:00:30.2]} 60. Re4 {[%clk 0:00:47.6]} 60... Qd1 {[%clk 0:00:28.2]}
61. Rg4 {[%clk 0:00:47.3]} 61... Qe2 {[%clk 0:00:28.9]} 62. Re4 {[%clk
0:00:47.4]} 62... Qd1 {[%clk 0:00:28.9]} 63. Rg4 {[%clk 0:00:47.5]} 63... Qc2
{[%clk 0:00:28.9]} 64. Re4 {[%clk 0:00:47.6]} 64... Qc8 {[%clk 0:00:29.2]} 65.
Rg4 {[%clk 0:00:47.7]} 65... Qh8 {[%clk 0:00:29.9]} 66. Re4 {[%clk 0:00:47.8]}
66... Qh5 {[%clk 0:00:29.6]} 67. Rg4 {[%clk 0:00:47.8]} 67... Qxg4+ {[%clk
0:00:25.5]} 68. fxg4+ {[%clk 0:00:47.8]} 68... Kxg4 {[%clk 0:00:26.4]} 69. f3+
{[%clk 0:00:48.3]} 69... Kf4 {[%clk 0:00:26.7]} 70. Kf2 {[%clk 0:00:48.8]} 70...
g4 {[%clk 0:00:27.6]} 71. fxg4 {[%clk 0:00:49.3]} 71... Kxg4 {[%clk 0:00:28.5]}
1/2-1/2

[Event "Late-Titled-Tuesday-Blitz-July-09-2024"]
[Site "Chess.com"]
[Date "2024.07.09"]
[Round "11"]
[White "annasargsyan_m"]
[Black "bancsoo"]
[Result "1-0"]
[WhiteElo "2706"]
[BlackElo "2843"]
[TimeControl "180+1"]
[EndTime "16:05:18 PDT"]
[Termination "annasargsyan_m won by resignation"]

1. e4 {[%clk 0:03:00.9]} 1... d6 {[%clk 0:02:58.5]} 2. d4 {[%clk 0:03:00.4]}
2... e5 {[%clk 0:02:58.8]} 3. Nf3 {[%clk 0:02:57.8]} 3... exd4 {[%clk
0:02:58.8]} 4. Nxd4 {[%clk 0:02:57.9]} 4... Nf6 {[%clk 0:02:58.6]} 5. Nc3 {[%clk
0:02:58.1]} 5... Be7 {[%clk 0:02:59.1]} 6. h3 {[%clk 0:02:53.2]} 6... O-O {[%clk
0:02:59.3]} 7. Be3 {[%clk 0:02:53.6]} 7... d5 {[%clk 0:02:47]} 8. e5 {[%clk
0:02:45.8]} 8... Ne8 {[%clk 0:02:44.1]} 9. Nb3 {[%clk 0:02:23.3]} 9... c6 {[%clk
0:02:43.3]} 10. Qd2 {[%clk 0:02:21.5]} 10... a5 {[%clk 0:02:41.2]} 11. a4 {[%clk
0:01:56.9]} 11... Bb4 {[%clk 0:02:30.2]} 12. O-O-O {[%clk 0:01:55.6]} 12... Nd7
{[%clk 0:02:20.5]} 13. f4 {[%clk 0:01:55.1]} 13... Nb6 {[%clk 0:02:18.1]} 14.
Qd4 {[%clk 0:01:36.3]} 14... Bxc3 {[%clk 0:01:53.4]} 15. Qxb6 {[%clk 0:01:35.5]}
15... Qxb6 {[%clk 0:01:52.2]} 16. Bxb6 {[%clk 0:01:36.4]} 16... Bb4 {[%clk
0:01:52.8]} 17. c3 {[%clk 0:01:36.7]} 17... Be7 {[%clk 0:01:48.2]} 18. Nxa5
{[%clk 0:01:16.5]} 18... f6 {[%clk 0:01:46]} 19. b4 {[%clk 0:01:02.4]} 19...
fxe5 {[%clk 0:01:43.5]} 20. fxe5 {[%clk 0:01:03.3]} 20... g6 {[%clk 0:01:20.6]}
21. Bd3 {[%clk 0:01:03.1]} 21... Ng7 {[%clk 0:01:20]} 22. Rhf1 {[%clk
0:01:03.6]} 22... Re8 {[%clk 0:01:04.6]} 23. Kb2 {[%clk 0:01:00.3]} 23... Ne6
{[%clk 0:00:53.1]} 24. Bc2 {[%clk 0:00:47.8]} 24... d4 {[%clk 0:00:45.4]} 25.
Bxd4 {[%clk 0:00:42.4]} 25... Nxd4 {[%clk 0:00:45.4]} 26. Rxd4 {[%clk
0:00:43.2]} 26... c5 {[%clk 0:00:46]} 27. Rdf4 {[%clk 0:00:34.8]} 27... cxb4
{[%clk 0:00:33.9]} 28. cxb4 {[%clk 0:00:35.7]} 28... Bxb4 {[%clk 0:00:21.1]} 29.
Bb3+ {[%clk 0:00:32.4]} 29... Kh8 {[%clk 0:00:15]} 30. Nc4 {[%clk 0:00:23.7]}
30... Be6 {[%clk 0:00:08.5]} 31. Nd6 {[%clk 0:00:21.9]} 31... Bxd6 {[%clk
0:00:07.4]} 32. exd6 {[%clk 0:00:22.1]} 32... Bxb3 {[%clk 0:00:06.9]} 33. Kxb3
{[%clk 0:00:23]} 33... Re3+ {[%clk 0:00:07]} 34. Kb4 {[%clk 0:00:22.6]} 34...
Rd3 {[%clk 0:00:07.2]} 35. Rf8+ {[%clk 0:00:21.7]} 35... Rxf8 {[%clk 0:00:07.4]}
36. Rxf8+ {[%clk 0:00:22.6]} 36... Kg7 {[%clk 0:00:08]} 37. Rd8 {[%clk
0:00:22.8]} 37... Kf6 {[%clk 0:00:05.9]} 38. Rd7 {[%clk 0:00:21.8]} 38... h5
{[%clk 0:00:05.4]} 39. a5 {[%clk 0:00:20]} 39... Kg5 {[%clk 0:00:04.1]} 40. Rxb7
{[%clk 0:00:19.8]} 40... Rxd6 {[%clk 0:00:04.4]} 41. Rb6 {[%clk 0:00:18.7]}
41... Rd2 {[%clk 0:00:04.6]} 42. a6 {[%clk 0:00:18.8]} 42... Rxg2 {[%clk
0:00:04.9]} 43. a7 {[%clk 0:00:18.3]} 43... Ra2 {[%clk 0:00:04.8]} 44. Rb5+
{[%clk 0:00:18.8]} 44... Kh4 {[%clk 0:00:02.4]} 45. Ra5 {[%clk 0:00:19.7]} 1-0

[Event "Late-Titled-Tuesday-Blitz-July-09-2024"]
[Site "Chess.com"]
[Date "2024.07.09"]
[Round "11"]
[White "mortngabriel"]
[Black "Noki102"]
[Result "0-1"]
[WhiteElo "2462"]
[BlackElo "2556"]
[TimeControl "180+1"]
[EndTime "16:05:20 PDT"]
[Termination "Noki102 won on time"]

1. e4 {[%clk 0:03:00.9]} 1... b6 {[%clk 0:03:00.9]} 2. d4 {[%clk 0:03:00.6]}
2... Bb7 {[%clk 0:03:01.5]} 3. Bd3 {[%clk 0:03:01.1]} 3... f5 {[%clk 0:03:02.1]}
4. exf5 {[%clk 0:02:59.1]} 4... Bxg2 {[%clk 0:03:03]} 5. Qh5+ {[%clk 0:02:55.7]}
5... g6 {[%clk 0:03:03.4]} 6. fxg6 {[%clk 0:02:52.7]} 6... Bg7 {[%clk
0:03:04.1]} 7. gxh7+ {[%clk 0:02:39.8]} 7... Kf8 {[%clk 0:03:04.5]} 8. Ne2
{[%clk 0:02:14.6]} 8... Nf6 {[%clk 0:02:50.3]} 9. Qh4 {[%clk 0:02:10.1]} 9...
Bxh1 {[%clk 0:02:45]} 10. Nf4 {[%clk 0:01:46.5]} 10... Kf7 {[%clk 0:01:53.3]}
11. Bg6+ {[%clk 0:01:45.6]} 11... Kf8 {[%clk 0:01:52.2]} 12. Bf5 {[%clk
0:01:27.1]} 12... e6 {[%clk 0:01:42.3]} 13. Ng6+ {[%clk 0:01:13]} 13... Kf7
{[%clk 0:01:41.8]} 14. Ne5+ {[%clk 0:01:04.2]} 14... Ke8 {[%clk 0:01:24.8]} 15.
Bh6 {[%clk 0:00:40]} 15... Bxh6 {[%clk 0:00:53.6]} 16. Qxh6 {[%clk 0:00:39.4]}
16... exf5 {[%clk 0:00:53.5]} 17. Qg7 {[%clk 0:00:38.2]} 17... Rxh7 {[%clk
0:00:51.9]} 18. Qg6+ {[%clk 0:00:24.5]} 18... Ke7 {[%clk 0:00:46.5]} 19. Nc3
{[%clk 0:00:22.1]} 19... Qg8 {[%clk 0:00:44.7]} 20. Qxf5 {[%clk 0:00:13.6]}
20... Qe6 {[%clk 0:00:29.6]} 21. Qg6 {[%clk 0:00:08.9]} 21... Nc6 {[%clk
0:00:16.5]} 22. O-O-O {[%clk 0:00:08.6]} 22... Nxe5 {[%clk 0:00:16.8]} 23. dxe5
{[%clk 0:00:08.6]} 23... Rf7 {[%clk 0:00:09]} 24. exf6+ {[%clk 0:00:06.9]} 24...
Rxf6 {[%clk 0:00:07.3]} 25. Qg7+ {[%clk 0:00:03.9]} 25... Qf7 {[%clk 0:00:07.7]}
26. Qg5 {[%clk 0:00:04]} 26... Bc6 {[%clk 0:00:06.1]} 27. Qe5+ {[%clk
0:00:02.1]} 27... Re6 {[%clk 0:00:05.5]} 28. Qxc7 {[%clk 0:00:02.3]} 28... Re8
{[%clk 0:00:05]} 29. Qxa7 {[%clk 0:00:01.6]} 29... Kf8 {[%clk 0:00:05.4]} 30.
Qxb6 {[%clk 0:00:01.8]} 30... Qf4+ {[%clk 0:00:05.4]} 31. Kb1 {[%clk 0:00:01.5]}
31... Re1 {[%clk 0:00:05.5]} 32. Qc5+ {[%clk 0:00:01.9]} 32... Kg7 {[%clk
0:00:05.5]} 33. b3 {[%clk 0:00:02]} 33... Rxd1+ {[%clk 0:00:05.3]} 34. Nxd1
{[%clk 0:00:02.9]} 34... Qf6 {[%clk 0:00:04.4]} 35. Ne3 {[%clk 0:00:02.7]} 35...
Re5 {[%clk 0:00:03.3]} 36. Qd4 {[%clk 0:00:01.8]} 36... Rg5 {[%clk 0:00:02.2]}
37. Qh4 {[%clk 0:00:01.6]} 37... Rg1+ {[%clk 0:00:02.4]} 0-1

[Event "Late-Titled-Tuesday-Blitz-July-09-2024"]
[Site "Chess.com"]
[Date "2024.07.09"]
[Round "11"]
[White "Antek_Radzimski"]
[Black "SRob2003"]
[Result "1-0"]
[WhiteElo "2581"]
[BlackElo "2704"]
[TimeControl "180+1"]
[EndTime "16:05:27 PDT"]
[Termination "Antek_Radzimski won on time"]

1. e4 {[%clk 0:03:00.9]} 1... c6 {[%clk 0:02:59.8]} 2. Nf3 {[%clk 0:03:00.6]}
2... d5 {[%clk 0:03:00.7]} 3. exd5 {[%clk 0:03:01.3]} 3... cxd5 {[%clk
0:03:00.8]} 4. Ne5 {[%clk 0:03:01.8]} 4... g6 {[%clk 0:02:58.7]} 5. d4 {[%clk
0:03:02]} 5... Bg7 {[%clk 0:02:58.7]} 6. Bd3 {[%clk 0:03:02.5]} 6... Nf6 {[%clk
0:02:53.3]} 7. c3 {[%clk 0:03:02.2]} 7... O-O {[%clk 0:02:53.3]} 8. O-O {[%clk
0:03:02.1]} 8... Nc6 {[%clk 0:02:47.8]} 9. Qe2 {[%clk 0:03:02.3]} 9... Nxe5
{[%clk 0:02:39.5]} 10. dxe5 {[%clk 0:03:03.2]} 10... Nd7 {[%clk 0:02:40]} 11.
Bf4 {[%clk 0:03:03.9]} 11... Kh8 {[%clk 0:02:23.5]} 12. Nd2 {[%clk 0:03:00.4]}
12... Nc5 {[%clk 0:02:23.7]} 13. Nf3 {[%clk 0:02:56.9]} 13... Nxd3 {[%clk
0:02:22.6]} 14. Qxd3 {[%clk 0:02:56.8]} 14... Bf5 {[%clk 0:02:21.6]} 15. Qd4
{[%clk 0:02:56.3]} 15... Bg4 {[%clk 0:02:16.4]} 16. Nd2 {[%clk 0:02:52.8]} 16...
Qd7 {[%clk 0:02:07.9]} 17. Nb3 {[%clk 0:02:47.1]} 17... b6 {[%clk 0:02:07.7]}
18. f3 {[%clk 0:02:46.7]} 18... Bf5 {[%clk 0:02:02.4]} 19. Rad1 {[%clk
0:02:44.7]} 19... Rfd8 {[%clk 0:02:01.8]} 20. Qf2 {[%clk 0:02:44.6]} 20... Qa4
{[%clk 0:01:55.1]} 21. Nd4 {[%clk 0:02:40.9]} 21... Qxa2 {[%clk 0:01:42.4]} 22.
Nxf5 {[%clk 0:02:36.1]} 22... gxf5 {[%clk 0:01:43.3]} 23. Qh4 {[%clk 0:02:34.6]}
23... Qa4 {[%clk 0:01:31]} 24. Rd4 {[%clk 0:02:31]} 24... Qd7 {[%clk 0:01:29.9]}
25. Rfd1 {[%clk 0:02:21.5]} 25... Qe6 {[%clk 0:01:29.8]} 26. Bg5 {[%clk
0:02:09]} 26... Bxe5 {[%clk 0:00:46.6]} 27. Bxe7 {[%clk 0:01:58.1]} 27... Re8
{[%clk 0:00:45]} 28. Bg5 {[%clk 0:01:27.6]} 28... f6 {[%clk 0:00:43.1]} 29. Be3
{[%clk 0:01:22.3]} 29... Bxd4 {[%clk 0:00:27.7]} 30. Bxd4 {[%clk 0:01:23.2]}
30... Rf8 {[%clk 0:00:25.1]} 31. Re1 {[%clk 0:01:22.8]} 31... Qf7 {[%clk
0:00:25]} 32. h3 {[%clk 0:01:12.8]} 32... Rae8 {[%clk 0:00:25.1]} 33. Rxe8
{[%clk 0:01:08.6]} 33... Qxe8 {[%clk 0:00:26]} 34. Bxf6+ {[%clk 0:01:08.2]}
34... Kg8 {[%clk 0:00:26]} 35. Bd4 {[%clk 0:01:06.6]} 35... Qg6 {[%clk
0:00:14.8]} 36. Qe7 {[%clk 0:01:04.8]} 36... Qf7 {[%clk 0:00:14]} 37. Qe5 {[%clk
0:01:03.3]} 37... Qg6 {[%clk 0:00:08.8]} 38. Qxd5+ {[%clk 0:01:03.4]} 38... Qf7
{[%clk 0:00:08.6]} 39. Qe5 {[%clk 0:01:03.4]} 39... Qg6 {[%clk 0:00:09]} 40.
Qh8+ {[%clk 0:00:58.9]} 40... Kf7 {[%clk 0:00:09.2]} 41. Qe5 {[%clk 0:00:56.7]}
41... Re8 {[%clk 0:00:09.4]} 42. Qc7+ {[%clk 0:00:55.5]} 42... Re7 {[%clk
0:00:09.7]} 43. Qc4+ {[%clk 0:00:51.9]} 43... Qe6 {[%clk 0:00:10]} 44. Qd3
{[%clk 0:00:50.8]} 44... Kg6 {[%clk 0:00:05.9]} 45. f4 {[%clk 0:00:46.7]} 45...
Qe2 {[%clk 0:00:03.5]} 46. Qg3+ {[%clk 0:00:46.4]} 46... Kf7 {[%clk 0:00:02.1]}
47. Qg7+ {[%clk 0:00:46.9]} 47... Ke8 {[%clk 0:00:02.6]} 48. Qg8+ {[%clk
0:00:44.5]} 48... Kd7 {[%clk 0:00:02.9]} 49. Qd5+ {[%clk 0:00:45]} 49... Ke8
{[%clk 0:00:02.5]} 50. Qxf5 {[%clk 0:00:40.2]} 50... Qe6 {[%clk 0:00:02.7]} 51.
Qh5+ {[%clk 0:00:39.1]} 51... Qg6 {[%clk 0:00:01.8]} 52. Qf3 {[%clk 0:00:33]}
1-0

[Event "Late-Titled-Tuesday-Blitz-July-09-2024"]
[Site "Chess.com"]
[Date "2024.07.09"]
[Round "11"]
[White "Snowball-03"]
[Black "Beaterawn"]
[Result "1-0"]
[WhiteElo "2607"]
[BlackElo "2452"]
[TimeControl "180+1"]
[EndTime "16:05:28 PDT"]
[Termination "Snowball-03 won on time"]

1. e4 {[%clk 0:02:57.6]} 1... c5 {[%clk 0:02:59.9]} 2. Nf3 {[%clk 0:02:57.5]}
2... e6 {[%clk 0:03:00.2]} 3. d4 {[%clk 0:02:58]} 3... cxd4 {[%clk 0:03:01.1]}
4. Nxd4 {[%clk 0:02:58.6]} 4... a6 {[%clk 0:03:01.7]} 5. Nc3 {[%clk 0:02:58.5]}
5... Qc7 {[%clk 0:03:02.2]} 6. Be3 {[%clk 0:02:54.5]} 6... Nf6 {[%clk
0:03:01.6]} 7. f3 {[%clk 0:02:49.6]} 7... Bb4 {[%clk 0:03:00.8]} 8. Qd3 {[%clk
0:02:45.6]} 8... d5 {[%clk 0:03:00.2]} 9. exd5 {[%clk 0:02:22.8]} 9... Nxd5
{[%clk 0:02:59]} 10. Bd2 {[%clk 0:02:22.9]} 10... Nxc3 {[%clk 0:02:57.5]} 11.
bxc3 {[%clk 0:02:21.9]} 11... Bd6 {[%clk 0:02:46.6]} 12. g3 {[%clk 0:02:17.1]}
12... O-O {[%clk 0:02:43.3]} 13. Kf2 {[%clk 0:02:13.7]} 13... e5 {[%clk
0:02:36.9]} 14. Nb3 {[%clk 0:02:07.8]} 14... Nc6 {[%clk 0:02:31.3]} 15. Kg2
{[%clk 0:02:04.2]} 15... Be6 {[%clk 0:02:26]} 16. Rd1 {[%clk 0:02:03.3]} 16...
Rfd8 {[%clk 0:02:22.8]} 17. Qe3 {[%clk 0:01:57.2]} 17... Ne7 {[%clk 0:02:15.7]}
18. Be2 {[%clk 0:01:39.9]} 18... Rac8 {[%clk 0:02:11.2]} 19. c4 {[%clk
0:01:32.6]} 19... Bxc4 {[%clk 0:02:06.1]} 20. Ba5 {[%clk 0:01:31.1]} 20... Qc6
{[%clk 0:01:57.2]} 21. Bxc4 {[%clk 0:01:07.4]} 21... Qxc4 {[%clk 0:01:39.1]} 22.
Bxd8 {[%clk 0:01:05.9]} 22... Rxd8 {[%clk 0:01:37.9]} 23. Rd2 {[%clk 0:01:02.3]}
23... Nc6 {[%clk 0:01:11.4]} 24. Rhd1 {[%clk 0:00:59.7]} 24... Be7 {[%clk
0:01:11.1]} 25. Rxd8+ {[%clk 0:00:59.1]} 25... Bxd8 {[%clk 0:01:12]} 26. Qd3
{[%clk 0:00:45.9]} 26... Qxd3 {[%clk 0:01:05.3]} 27. Rxd3 {[%clk 0:00:46.8]}
27... Bb6 {[%clk 0:01:05.9]} 28. Rd7 {[%clk 0:00:45.9]} 28... Nd8 {[%clk
0:00:51.2]} 29. Nd2 {[%clk 0:00:44.2]} 29... Ne6 {[%clk 0:00:19.8]} 30. Rxb7
{[%clk 0:00:41.3]} 30... Bd4 {[%clk 0:00:18.2]} 31. Rb8+ {[%clk 0:00:41.2]}
31... Nf8 {[%clk 0:00:18.7]} 32. Ne4 {[%clk 0:00:36.6]} 32... g6 {[%clk
0:00:17]} 33. c3 {[%clk 0:00:34.8]} 33... Be3 {[%clk 0:00:14.5]} 34. Ra8 {[%clk
0:00:29.2]} 34... Kg7 {[%clk 0:00:13.8]} 35. Rxa6 {[%clk 0:00:28.5]} 35... Ne6
{[%clk 0:00:14.4]} 36. Rc6 {[%clk 0:00:26.3]} 36... Nd8 {[%clk 0:00:10.9]} 37.
Rc8 {[%clk 0:00:25]} 37... Ne6 {[%clk 0:00:10.3]} 38. a4 {[%clk 0:00:24.6]}
38... f5 {[%clk 0:00:10.3]} 39. Nd6 {[%clk 0:00:20.4]} 39... Bc5 {[%clk
0:00:07.4]} 40. Nc4 {[%clk 0:00:20.6]} 40... e4 {[%clk 0:00:07.3]} 41. fxe4
{[%clk 0:00:21.5]} 41... fxe4 {[%clk 0:00:08.2]} 42. a5 {[%clk 0:00:21.8]} 42...
e3 {[%clk 0:00:07.2]} 43. Kf3 {[%clk 0:00:22.3]} 43... Ng5+ {[%clk 0:00:07.5]}
44. Ke2 {[%clk 0:00:22.5]} 44... Ne4 {[%clk 0:00:04.7]} 45. Nxe3 {[%clk
0:00:17.8]} 45... Nxc3+ {[%clk 0:00:04.7]} 46. Kd3 {[%clk 0:00:17.9]} 1-0

[Event "Late-Titled-Tuesday-Blitz-July-09-2024"]
[Site "Chess.com"]
[Date "2024.07.09"]
[Round "11"]
[White "Matalon"]
[Black "PapaieDudu"]
[Result "0-1"]
[WhiteElo "2467"]
[BlackElo "2421"]
[TimeControl "180+1"]
[EndTime "16:05:29 PDT"]
[Termination "PapaieDudu won by checkmate"]

1. e4 {[%clk 0:02:53.4]} 1... c5 {[%clk 0:02:58.8]} 2. Nf3 {[%clk 0:02:53.8]}
2... d6 {[%clk 0:02:59.1]} 3. d4 {[%clk 0:02:54.3]} 3... cxd4 {[%clk 0:02:59.8]}
4. Nxd4 {[%clk 0:02:55.2]} 4... Nf6 {[%clk 0:03:00.5]} 5. Nc3 {[%clk 0:02:55.9]}
5... a6 {[%clk 0:03:01.1]} 6. Be2 {[%clk 0:02:56.4]} 6... Nc6 {[%clk 0:02:58.9]}
7. O-O {[%clk 0:02:56]} 7... e6 {[%clk 0:02:58]} 8. Be3 {[%clk 0:02:55.9]} 8...
Be7 {[%clk 0:02:58.3]} 9. Qd2 {[%clk 0:02:56.1]} 9... O-O {[%clk 0:02:59]} 10.
a4 {[%clk 0:02:56]} 10... Qc7 {[%clk 0:02:59.6]} 11. f3 {[%clk 0:02:56.3]} 11...
Rd8 {[%clk 0:03:00.2]} 12. Rfd1 {[%clk 0:02:56.5]} 12... Bd7 {[%clk 0:03:00.8]}
13. Nxc6 {[%clk 0:02:42.2]} 13... bxc6 {[%clk 0:03:00.9]} 14. b4 {[%clk
0:02:37.7]} 14... d5 {[%clk 0:02:57.8]} 15. exd5 {[%clk 0:02:28.6]} 15... cxd5
{[%clk 0:02:52]} 16. Rab1 {[%clk 0:02:27.5]} 16... e5 {[%clk 0:02:33]} 17. Nxd5
{[%clk 0:02:23.5]} 17... Nxd5 {[%clk 0:02:32.8]} 18. Qxd5 {[%clk 0:02:24.4]}
18... Bxa4 {[%clk 0:02:31.9]} 19. Qa2 {[%clk 0:02:10.6]} 19... Rxd1+ {[%clk
0:01:58.5]} 20. Rxd1 {[%clk 0:02:04.3]} 20... Qxc2 {[%clk 0:01:52.1]} 21. Qxc2
{[%clk 0:02:03.7]} 21... Bxc2 {[%clk 0:01:52.4]} 22. Rd7 {[%clk 0:01:59.2]}
22... Bxb4 {[%clk 0:01:44.7]} 23. Bc4 {[%clk 0:01:50.7]} 23... Bg6 {[%clk
0:01:36.7]} 24. Bxa6 {[%clk 0:01:50.1]} 24... h6 {[%clk 0:01:33.2]} 25. Bc4
{[%clk 0:01:44.2]} 25... Ra3 {[%clk 0:01:28.5]} 26. Kf2 {[%clk 0:01:42.8]} 26...
Rc3 {[%clk 0:01:25.8]} 27. Bd5 {[%clk 0:01:40.1]} 27... Rc2+ {[%clk 0:01:18.4]}
28. Kg1 {[%clk 0:01:26.2]} 28... Kf8 {[%clk 0:00:54.5]} 29. h4 {[%clk
0:01:20.4]} 29... Bc5 {[%clk 0:00:46.5]} 30. Bxc5+ {[%clk 0:01:17.5]} 30... Rxc5
{[%clk 0:00:47]} 31. Kf2 {[%clk 0:01:15.9]} 31... Ke8 {[%clk 0:00:44.3]} 32. Rd6
{[%clk 0:01:06.7]} 32... Ke7 {[%clk 0:00:40.7]} 33. Rxg6 {[%clk 0:01:06.7]}
33... fxg6 {[%clk 0:00:37.6]} 34. Be4 {[%clk 0:01:07.6]} 34... Kf6 {[%clk
0:00:35.3]} 35. g4 {[%clk 0:01:07.4]} 35... Rc1 {[%clk 0:00:24.2]} 36. Kg2
{[%clk 0:01:05.2]} 36... Re1 {[%clk 0:00:18.9]} 37. Kh2 {[%clk 0:01:04.5]} 37...
g5 {[%clk 0:00:07.6]} 38. h5 {[%clk 0:01:01.4]} 38... Rxe4 {[%clk 0:00:06.3]}
39. fxe4 {[%clk 0:00:56.1]} 39... Ke6 {[%clk 0:00:05.1]} 40. Kg2 {[%clk
0:00:53]} 40... Kd6 {[%clk 0:00:05.5]} 41. Kf2 {[%clk 0:00:48.8]} 41... Kc5
{[%clk 0:00:05.9]} 42. Ke3 {[%clk 0:00:46]} 42... Kc4 {[%clk 0:00:06.1]} 43. Ke2
{[%clk 0:00:43.5]} 43... Kd4 {[%clk 0:00:06.4]} 44. Kf3 {[%clk 0:00:44.1]} 44...
Kd3 {[%clk 0:00:07]} 45. Kf2 {[%clk 0:00:44.8]} 45... Kxe4 {[%clk 0:00:07.3]}
46. Ke2 {[%clk 0:00:45.7]} 46... Kf4 {[%clk 0:00:07.7]} 47. Kf2 {[%clk
0:00:46.6]} 47... Kxg4 {[%clk 0:00:08.1]} 48. Ke3 {[%clk 0:00:47.5]} 48... Kxh5
{[%clk 0:00:07.9]} 49. Ke4 {[%clk 0:00:48.4]} 49... g4 {[%clk 0:00:08.1]} 50.
Kxe5 {[%clk 0:00:49.3]} 50... g3 {[%clk 0:00:08.9]} 51. Ke6 {[%clk 0:00:50.2]}
51... g2 {[%clk 0:00:09.6]} 52. Kf7 {[%clk 0:00:51.1]} 52... g1=Q {[%clk
0:00:10.2]} 53. Kg8 {[%clk 0:00:52]} 53... g5 {[%clk 0:00:10.2]} 54. Kh7 {[%clk
0:00:52.6]} 54... g4 {[%clk 0:00:10.8]} 55. Kh8 {[%clk 0:00:52.7]} 55... g3
{[%clk 0:00:11.4]} 56. Kh7 {[%clk 0:00:53.4]} 56... g2 {[%clk 0:00:12]} 57. Kh8
{[%clk 0:00:54]} 57... Qd4+ {[%clk 0:00:12]} 58. Kh7 {[%clk 0:00:54.4]} 58...
Qd7+ {[%clk 0:00:12]} 59. Kh8 {[%clk 0:00:54.4]} 59... Qg4 {[%clk 0:00:08.4]}
60. Kh7 {[%clk 0:00:54.4]} 60... Kg5 {[%clk 0:00:08.1]} 61. Kg7 {[%clk
0:00:52.8]} 61... Kf5+ {[%clk 0:00:08.2]} 62. Kh7 {[%clk 0:00:53.1]} 62... Kf6
{[%clk 0:00:05.4]} 63. Kh8 {[%clk 0:00:52.6]} 63... Qg7# {[%clk 0:00:05.8]} 0-1